bitfinex-derivatives/quotes_SOLF0:USTF0_20240820
["timestamp","ask_amount","ask_price","bid_price","bid_amount"]
[1724172371872,37.09136144,142.78,142.76,3.5549802]
[1724172373268,1.34016144,142.78,142.77,3.5013]
[1724172373580,0.05366144,142.78,142.77,3.5013]
[1724172376578,0.05366144,142.78,142.76,0.0534802]
[1724172376579,37.1125,142.83,142.81,3.5002]
[1724172376880,33.6126,142.83,142.74,32.25]
[1724172377081,33.6126,142.83,142.81,3.5002]
[1724172377379,32.25,142.85,142.74,32.25]
[1724172377683,3.4997,142.84,142.78,0.04587625]
[1724172379071,3.4997,142.84,142.81,3.5002]
[1724172379273,3.4997,142.84,142.81,3.54865029]
[1724172379979,32.25,142.85,142.81,3.54865029]
[1724172380168,32.25,142.85,142.82,3.5001]
[1724172380578,3.4997,142.84,142.81,0.04845029]
[1724172380787,32.25,142.85,142.81,3.54865029]
[1724172381280,3.4997,142.84,142.81,3.54865029]
[1724172381675,3.4998,142.83,142.81,3.54865029]
[1724172384380,3.5001,142.82,142.81,0.04845029]
[1724172385184,32.25,142.83,142.73,1.28614115]
[1724172385378,32.25,142.8,142.73,1.28614115]
[1724172386084,32.25,142.8,142.75,0.04414975]
[1724172386271,32.25,142.78,142.75,0.04414975]
[1724172386479,32.29500063,142.78,142.75,0.05067682]
[1724172386781,32.29500063,142.78,142.76,3.5015]
[1724172388185,0.04500063,142.78,142.77,3.5013]
[1724172393381,32.29500063,142.78,142.75,0.05067682]
[1724172393685,32.25,142.77,142.75,0.05067682]
[1724172393904,32.29500063,142.78,142.75,0.05067682]
[1724172394281,32.29500063,142.78,142.75,3.55237682]
[1724172395285,32.29500063,142.78,142.76,3.5015]
[1724172396380,35.79600063,142.78,142.75,3.55237682]
[1724172397180,35.7513,142.77,142.75,0.05067682]
[1724172397382,32.25,142.77,142.67,45.58293438]
[1724172397583,35.7518,142.75,142.72,3.5023]
[1724172398185,35.7518,142.75,142.67,42.97379704]
[1724172398491,0.05283848,142.72,142.7,0.05261764]
[1724172398681,0.04516293,142.72,142.7,0.05325142]
[1724172398882,0.04516293,142.72,142.71,3.5027]
[1724172400887,0.04516293,142.72,142.58,7.0117]
[1724172401189,32.25,142.68,142.61,1.28721514]
[1724172401389,32.25,142.68,142.65,3.5041]
[1724172401785,32.30022758,142.68,142.65,3.55286072]
[1724172402093,35.80392758,142.68,142.65,3.55286072]
[1724172402301,32.30022758,142.68,142.66,3.5038]
[1724172402990,32.30022758,142.68,142.65,3.55286072]
[1724172403191,35.80382758,142.68,142.65,3.55286072]
[1724172403892,3.5038,142.67,142.65,0.04876072]
[1724172404087,32.30022758,142.68,142.65,0.04876072]
[1724172404290,35.80392758,142.68,142.65,3.55296072]
[1724172404685,32.30022758,142.68,142.65,3.55296072]
[1724172404987,32.30022758,142.68,142.65,0.04876072]
[1724172404988,3.5038,142.67,142.65,0.04876072]
[1724172405288,32.30022758,142.68,142.65,0.04876072]
[1724172405490,3.5039,142.67,142.65,0.04876072]
[1724172408196,35.80372758,142.68,142.65,3.55286072]
[1724172409189,35.80372758,142.68,142.65,0.04876072]
[1724172409190,32.30022758,142.68,142.65,0.04876072]
[1724172409898,32.30022758,142.68,142.66,3.5039]
[1724172411900,35.80372758,142.68,142.66,3.5039]
[1724172412097,32.30022758,142.68,142.65,3.55286072]
[1724172412597,35.80382758,142.68,142.65,3.55286072]
[1724172416893,32.30022758,142.68,142.65,0.04876072]
[1724172417097,32.30022758,142.68,142.66,3.5038]
[1724172417399,32.30022758,142.68,142.65,0.04876072]
[1724172417612,3.5039,142.67,142.65,3.55296072]
[1724172417806,32.30022758,142.68,142.65,0.04876072]
[1724172418309,3.5039,142.67,142.65,0.04876072]
[1724172419302,3.5039,142.67,142.65,3.55296072]
[1724172420717,35.754,142.66,142.65,0.04876072]
[1724172421305,32.25,142.66,142.6,1.28735682]
[1724172421510,32.25,142.63,142.57,1.28757087]
[1724172421716,32.25,142.63,142.56,6.0622506]
[1724172421907,3.5046,142.64,142.61,3.505]
[1724172422302,3.55279864,142.64,142.61,0.05087465]
[1724172422505,0.04819864,142.64,142.62,3.5048]
[1724172422719,0.04819864,142.64,142.61,0.05087465]
[1724172423104,0.04819864,142.64,142.62,3.5048]
[1724172424010,0.04819864,142.64,142.61,3.55607465]
[1724172424307,0.04819864,142.64,142.61,0.05087465]
[1724172424508,12.92,142.62,142.61,0.05087465]
[1724172425210,16.4248,142.63,142.61,0.05087465]
[1724172425616,16.4248,142.63,142.61,3.55607465]
[1724172426205,12.92,142.63,142.61,3.55607465]
[1724172426406,3.55279864,142.64,142.62,3.505]
[1724172426616,0.04819864,142.64,142.62,3.505]
[1724172426810,0.04819864,142.64,142.61,0.05087465]
[1724172427023,0.04819864,142.64,142.63,3.5047]
[1724172431824,0.04819864,142.64,142.62,3.5049]
[1724172432018,32.33819864,142.64,142.62,3.5049]
[1724172432324,35.84279864,142.64,142.62,3.5049]
[1724172433026,32.33819864,142.64,142.61,0.05087465]
[1724172433426,35.84279864,142.64,142.61,3.55597465]
[1724172433619,32.33819864,142.64,142.61,3.55597465]
[1724172433814,35.84279864,142.64,142.61,3.55597465]
[1724172434022,35.84279864,142.64,142.62,3.5049]
[1724172436429,32.33819864,142.64,142.62,3.5049]
[1724172437327,35.84269864,142.64,142.62,3.5049]
[1724172437631,32.33819864,142.64,142.62,3.5049]
[1724172437825,0.04819864,142.64,142.63,3.5047]
[1724172440230,0.04819864,142.64,142.62,3.5049]
[1724172440429,0.04819864,142.64,142.61,0.05087465]
[1724172440630,35.84279864,142.64,142.61,0.05087465]
[1724172440826,35.84279864,142.64,142.61,3.55587465]
[1724172441130,32.33819864,142.64,142.61,0.05087465]
[1724172441326,3.5049,142.63,142.61,0.05087465]
[1724172441735,3.505,142.62,142.61,0.05087465]
[1724172442220,3.45179058,142.62,142.54,1.2552]
[1724172442419,35.7956,142.6,142.54,1.2552]
[1724172442628,32.29,142.6,142.58,3.5058]
[1724172443328,32.33414547,142.6,142.58,0.04528944]
[1724172443933,35.83974547,142.6,142.58,0.04528944]
[1724172444135,32.33414547,142.6,142.58,0.04528944]
[1724172445032,35.83974547,142.6,142.58,0.04528944]
[1724172445932,32.33414547,142.6,142.58,0.04528944]
[1724172446522,32.33414547,142.6,142.58,3.55118944]
[1724172447341,3.5057,142.59,142.58,0.04528944]
[1724172447729,35.7957,142.59,142.58,0.04528944]
[1724172450933,32.29,142.59,142.47,34.7959]
[1724172451138,32.29,142.56,142.53,3.507]
[1724172451339,35.7966,142.56,142.53,3.507]
[1724172451737,35.8497064,142.56,142.53,3.5549686]
[1724172451931,35.8497064,142.56,142.54,3.5069]
[1724172452742,3.5597064,142.56,142.54,3.5069]
[1724172453035,0.0531064,142.56,142.55,3.5067]
[1724172456445,16.4896064,142.56,142.53,0.0479686]
[1724172456842,0.0531064,142.56,142.53,0.0479686]
[1724172457043,12.9831064,142.56,142.53,0.0479686]
[1724172457246,12.9831064,142.56,142.55,3.5067]
[1724172460846,12.9831064,142.56,142.54,3.5068]
[1724172461048,12.93,142.55,142.53,0.0479686]
[1724172462349,12.93,142.55,142.53,3.5549686]
[1724172463343,12.93,142.55,142.54,3.5069]
[1724172466345,16.4368,142.55,142.53,0.0479686]
[1724172466554,12.93,142.55,142.53,0.0479686]
[1724172467445,3.5071,142.54,142.51,3.5075]
[1724172467648,12.93,142.52,142.44,1.3459]
[1724172467958,12.93,142.49,142.45,1.2885802]
[1724172468157,12.93,142.49,142.48,3.5084]
[1724172468455,12.93,142.51,142.45,12.93]
[1724172468657,0.04719497,142.5,142.47,0.04693236]
[1724172469546,0.04719497,142.5,142.49,3.5081]
[1724172478465,0.04719497,142.5,142.49,4.79665677]
[1724172479961,12.97719497,142.5,142.49,4.79665677]
[1724172480171,12.97719497,142.5,142.49,1.28855677]
[1724172480472,12.97719497,142.5,142.48,3.5084]
[1724172481267,12.97719497,142.5,142.47,3.55543236]
[1724172481454,12.93,142.48,142.47,0.04693236]
[1724172482759,12.93,142.48,142.47,1.33560241]
[1724172483164,0.04719497,142.5,142.47,4.84430241]
[1724172483469,12.93,142.49,142.47,3.55563236]
[1724172484973,16.4382,142.49,142.47,3.55563236]
[1724172486053,16.4382,142.49,142.47,0.04693236]
[1724172487071,3.5084,142.48,142.47,0.04693236]
[1724172489565,17.7636,142.49,142.47,0.04693236]
[1724172490473,17.7636,142.49,142.47,3.55553236]
[1724172491573,14.2553,142.49,142.47,0.04693236]
[1724172491877,3.5084,142.48,142.47,0.04693236]
[1724172492076,14.2553,142.49,142.47,0.04693236]
[1724172492971,3.5084,142.48,142.47,0.04693236]
[1724172496468,1.3253,142.49,142.47,0.04693236]
[1724172496667,12.93,142.48,142.47,0.04693236]
[1724172497576,12.93,142.48,142.47,3.55563236]
[1724172498376,0.04719497,142.5,142.48,3.5084]
[1724172498579,0.04719497,142.5,142.47,0.04693236]
[1724172499279,0.04719497,142.5,142.49,3.5082]
[1724172503283,12.97719497,142.5,142.47,0.04693236]
[1724172503488,12.93,142.49,142.47,0.04693236]
[1724172503883,12.93,142.49,142.47,3.55543236]
[1724172504988,12.93,142.48,142.47,0.04693236]
[1724172505788,16.4383,142.49,142.47,3.55563236]
[1724172506290,16.4383,142.49,142.47,0.04693236]
[1724172506487,3.5083,142.49,142.47,0.04693236]
[1724172507178,3.5084,142.48,142.47,0.04693236]
[1724172507488,35.8184,142.48,142.47,0.04693236]
[1724172511595,32.31,142.48,142.44,3.5093]
[1724172511791,32.31,142.46,142.43,3.5095]
[1724172512193,35.819,142.46,142.43,3.5095]
[1724172512488,32.31,142.46,142.43,3.5095]
[1724172512695,3.5093,142.45,142.43,0.04652113]
[1724172513192,32.35832558,142.46,142.43,0.04652113]
[1724172513620,3.5094,142.44,142.43,0.04652113]
[1724172517799,35.8194,142.44,142.43,0.04652113]
[1724172517987,3.51,142.42,142.4,1.28923913]
[1724172518699,32.31,142.44,142.4,1.28923913]
[1724172518892,0.04675813,142.43,142.41,0.04736997]
[1724172519592,3.55655813,142.43,142.41,0.04736997]
[1724172520899,0.04675813,142.43,142.41,3.55746997]
[1724172521501,0.04675813,142.43,142.42,3.5099]
[1724172528599,12.97675813,142.43,142.42,3.5099]
[1724172529097,0.04675813,142.43,142.42,3.5099]
[1724172529299,12.93,142.47,142.46,3.5087]
[1724172529803,2.6956,142.52,142.4,12.93]
[1724172529804,1.3709,142.52,142.48,3.5082]
[1724172530000,12.93,142.49,142.48,3.5082]
[1724172535194,12.93,142.49,142.47,3.55620477]
[1724172535394,12.93,142.49,142.47,0.04760477]
[1724172535907,12.93,142.48,142.47,0.04760477]
[1724172536405,12.93,142.48,142.47,3.55610477]
[1724172537395,0.05067426,142.5,142.48,3.5084]
[1724172537396,12.93,142.49,142.48,3.5084]
[1724172542200,0.05067426,142.5,142.49,3.5082]
[1724172542411,12.98067426,142.5,142.49,3.5082]
[1724172545714,0.05067426,142.5,142.49,3.5082]
[1724172546108,12.98067426,142.5,142.49,3.5082]
[1724172549015,0.05067426,142.5,142.49,3.5082]
[1724172549212,12.98067426,142.5,142.49,3.5082]
[1724172549416,12.98067426,142.5,142.48,3.5082]
[1724172549616,12.93,142.49,142.48,3.5082]
[1724172550710,12.93,142.49,142.47,0.04760477]
[1724172551019,12.93,142.49,142.42,53.50765082]
[1724172551219,12.93,142.45,142.43,4.79837035]
[1724172551414,12.93,142.45,142.42,41.80146637]
[1724172551615,12.93,142.45,142.43,1.28906232]
[1724172551821,12.9767782,142.45,142.43,1.33864846]
[1724172552116,12.9767782,142.45,142.43,0.04958614]
[1724172552428,12.93,142.44,142.43,3.55918614]
[1724172552620,12.93,142.44,142.43,4.84828053]
[1724172552819,12.93,142.44,142.43,1.33868053]
[1724172553516,12.93,142.44,142.43,4.84828053]
[1724172553716,12.93,142.44,142.43,3.55918614]
[1724172553912,12.93,142.44,142.43,0.04958614]
[1724172554321,0.0467782,142.45,142.43,0.04958614]
[1724172554512,12.9767782,142.45,142.43,0.04958614]
[1724172554708,12.93,142.44,142.43,0.04958614]
[1724172555222,12.93,142.44,142.43,3.55908614]
[1724172555425,12.93,142.44,142.43,0.04958614]
[1724172555627,12.93,142.44,142.43,3.55918614]
[1724172559022,16.4394,142.44,142.37,44.41907428]
[1724172559229,12.93,142.41,142.38,1.28928855]
[1724172559620,12.93,142.41,142.4,3.5102]
[1724172560126,12.93,142.41,142.37,2.6045]
[1724172560127,12.93,142.41,142.39,0.05279071]
[1724172560454,12.93,142.4,142.39,0.05279071]
[1724172560815,12.93,142.4,142.39,3.56339071]
[1724172561015,12.93,142.4,142.39,4.85272565]
[1724172561216,5.85713509,142.4,142.39,4.85271482]
[1724172561729,5.85713509,142.4,142.39,1.34211482]
[1724172562429,5.85713509,142.4,142.39,0.05279071]
[1724172565028,57.57713509,142.4,142.34,71.21822526]
[1724172565328,12.93,142.35,142.34,28.12583808]
[1724172565518,12.93,142.35,142.34,3.5119]
[1724172566026,12.93,142.35,142.34,4.8016181]
[1724172569145,0.0495208,142.36,142.35,3.5116]
[1724172569335,0.0495208,142.36,142.35,4.8013181]
[1724172569737,0.0495208,142.36,142.35,3.5116]
[1724172569934,0.0495208,142.36,142.35,4.80122644]
[1724172571940,0.0495208,142.36,142.35,1.28962644]
[1724172572442,0.0495208,142.36,142.34,3.5119]
[1724172572641,12.93,142.35,142.34,3.5119]
[1724172572839,12.93,142.35,142.34,4.80163961]
[1724172574135,12.93,142.35,142.34,4.80164138]
[1724172574339,12.93,142.35,142.34,1.28974138]
[1724172575635,3.5119,142.34,142.33,1.33535369]
[1724172575848,64.65,142.34,142.25,23.32175743]
[1724172576146,12.93,142.3,142.28,3.5132]
[1724172576453,51.72,142.34,142.25,2.6021]
[1724172576454,12.93,142.29,142.25,2.6021]
[1724172576644,12.93,142.29,142.26,1.2699502]
[1724172576848,12.93,142.29,142.28,3.5133]
[1724172577047,0.04470315,142.29,142.28,3.5133]
[1724172577439,0.04470315,142.29,142.28,4.6836325]
[1724172578336,0.04470315,142.29,142.28,4.683579]
[1724172578744,12.93,142.32,142.31,3.5126]
[1724172579947,12.93,142.32,142.3,0.04838801]
[1724172580143,12.97814825,142.32,142.3,0.04752453]
[1724172580348,0.04814825,142.32,142.31,3.5126]
[1724172580547,1.3134,142.39,142.3,0.04752453]
[1724172580750,12.93,142.35,142.29,1.1701236]
[1724172581444,12.93,142.35,142.34,3.5119]
[1724172582145,12.97862894,142.36,142.35,3.5116]
[1724172582541,0.04862894,142.36,142.35,3.5116]
[1724172583749,12.97862894,142.36,142.34,0.0540452]
[1724172584545,12.97862894,142.36,142.35,3.5116]
[1724172584546,0.04862894,142.36,142.35,3.5116]
[1724172585843,0.04862894,142.36,142.34,3.5657452]
[1724172586044,0.04862894,142.36,142.34,0.0540452]
[1724172586444,0.04862894,142.36,142.35,3.5116]
[1724172592452,0.04862894,142.36,142.34,0.0540452]
[1724172593252,0.04862894,142.36,142.35,3.5116]
[1724172593759,0.04862894,142.36,142.34,3.5658452]
[1724172593949,32.40862894,142.36,142.34,0.0540452]
[1724172594645,35.92002894,142.36,142.34,0.0540452]
[1724172596054,32.40862894,142.36,142.34,0.0540452]
[1724172596259,32.40862894,142.36,142.34,3.5658452]
[1724172598354,0.04862894,142.36,142.35,3.5116]
[1724172599057,1.2565,142.44,142.35,1.16972803]
[1724172599058,32.36,142.4,142.35,1.16972803]
[1724172599256,32.36,142.4,142.34,1.16972803]
[1724172599453,32.36,142.4,142.38,3.5108]
[1724172599959,32.40503495,142.4,142.38,3.56089222]
[1724172600161,32.40503495,142.4,142.39,3.5106]
[1724172600360,0.04503495,142.4,142.39,3.5106]
[1724172601290,0.04503495,142.4,142.38,3.56079222]
[1724172601561,32.40503495,142.4,142.38,0.05009222]
[1724172601758,3.5108,142.39,142.35,3.5114]
[1724172601960,32.36,142.37,142.31,1.2478]
[1724172602160,32.36,142.37,142.32,1.16984792]
[1724172602562,32.36,142.37,142.35,3.5116]
[1724172602862,32.4110766,142.37,142.35,3.56409138]
[1724172605662,35.9221766,142.37,142.35,0.05249138]
[1724172606063,32.4110766,142.37,142.35,0.05249138]
[1724172606270,32.4110766,142.37,142.35,3.56399138]
[1724172606966,0.0510766,142.37,142.36,3.5114]
[1724172608573,32.36,142.42,142.35,0.05249138]
[1724172609369,35.8699,142.42,142.38,3.5107]
[1724172609572,0.05040541,142.4,142.39,0.04486005]
[1724172610471,0.05040541,142.4,142.33,3.59347257]
[1724172610672,32.36,142.39,142.3,2.5251]
[1724172610974,32.36,142.37,142.31,1.16987018]
[1724172611678,0.04714752,142.35,142.33,0.04566972]
[1724172611971,3.5108,142.39,142.37,0.00392908]
[1724172612274,32.36,142.38,142.37,0.00392908]
[1724172612584,32.36,142.38,142.37,32.41500568]
[1724172613970,0.05036146,142.39,142.37,32.41500568]
[1724172614171,32.41036146,142.39,142.37,35.92610568]
[1724172614673,32.41036146,142.39,142.37,32.41500568]
[1724172615561,35.92106146,142.39,142.37,32.41500568]
[1724172616467,32.41036146,142.39,142.37,35.92610568]
[1724172616872,32.41036146,142.39,142.37,32.41500568]
[1724172617068,0.05036146,142.39,142.37,32.41500568]
[1724172617474,32.41036146,142.39,142.37,32.41500568]
[1724172618764,35.92116146,142.39,142.37,32.41500568]
[1724172619167,32.41036146,142.39,142.37,32.41500568]
[1724172619377,3.5109,142.38,142.37,32.41500568]
[1724172619767,32.41036146,142.39,142.37,32.41500568]
[1724172620076,35.92116146,142.39,142.37,32.41500568]
[1724172620793,3.5109,142.38,142.37,32.41500568]
[1724172620976,32.41036146,142.39,142.36,0.0497252]
[1724172621171,32.41036146,142.39,142.3,2.5251]
[1724172621172,32.36,142.37,142.3,2.5251]
[1724172621476,35.8712,142.37,142.34,3.5117]
[1724172622274,35.9210752,142.37,142.34,3.56052617]
[1724172623376,3.5114,142.36,142.34,3.56052617]
[1724172624367,3.5114,142.36,142.34,0.04882617]
[1724172626576,12.95,142.35,142.34,0.04882617]
[1724172629480,16.4616,142.35,142.34,0.04882617]
[1724172629778,16.4616,142.35,142.27,75.21260036]
[1724172629981,12.95,142.3,142.28,43.02028997]
[1724172630277,12.95,142.29,142.28,41.85004404]
[1724172630481,12.95,142.29,142.27,75.21260036]
[1724172630785,13.00093394,142.29,142.28,3.5133]
[1724172630973,0.05093394,142.29,142.28,3.5133]
[1724172633379,12.95,142.34,142.3,3.5127]
[1724172633779,12.95,142.32,142.3,3.5127]
[1724172633969,12.95,142.32,142.28,41.84797172]
[1724172634174,12.95,142.31,142.26,14.2073]
[1724172634377,12.95,142.31,142.27,1.21744908]
[1724172634575,0.04484651,142.3,142.27,1.21744908]
[1724172634784,0.04484651,142.3,142.29,3.5129]
[1724172635583,0.04484651,142.3,142.27,0.0470876]
[1724172635776,0.04484651,142.3,142.27,1.21747219]
[1724172636184,0.04484651,142.3,142.29,3.5131]
[1724172636489,35.8917,142.35,142.27,0.0470876]
[1724172636685,35.8917,142.35,142.31,3.5125]
[1724172636883,35.8917,142.35,142.27,41.84933006]
[1724172637084,35.8917,142.35,142.28,1.17024725]
[1724172637281,32.38,142.35,142.31,3.5124]
[1724172637485,0.04685192,142.34,142.32,0.0505466]
[1724172637793,0.04685192,142.34,142.32,0.05236711]
[1724172638577,0.04685192,142.34,142.33,3.5121]
[1724172638786,0.04685192,142.34,142.32,0.05236711]
[1724172639985,3.55875192,142.34,142.32,0.05236711]
[1724172640186,32.38,142.33,142.32,0.05236711]
[1724172640595,35.8921,142.33,142.32,0.05236711]
[1724172641895,3.5127,142.31,142.28,3.5132]
[1724172642087,32.38,142.3,142.28,3.5132]
[1724172642287,32.38,142.3,142.25,3.56504209]
[1724172642595,32.38,142.3,142.28,3.5132]
[1724172642789,0.05222415,142.29,142.28,3.5132]
[1724172643597,0.05222415,142.29,142.28,4.68357255]
[1724172643781,0.05222415,142.29,142.28,3.5132]
[1724172643986,35.8919,142.34,142.3,3.5126]
[1724172644186,35.8919,142.34,142.26,0.05327958]
[1724172644394,35.8919,142.34,142.26,1.17025784]
[1724172644584,32.38,142.34,142.26,1.17025784]
[1724172644788,32.38,142.34,142.26,75.39992726]
[1724172644993,0.04980651,142.31,142.29,0.04714281]
[1724172645389,0.04980651,142.31,142.3,3.5128]
[1724172650593,1.2457,142.37,142.29,0.04714281]
[1724172650782,1.2457,142.37,142.29,1.21728645]
[1724172650783,32.38,142.36,142.29,1.21728645]
[1724172651097,1.2457,142.37,142.3,1.17012158]
[1724172651296,32.38,142.4,142.31,32.38]
[1724172651485,32.38,142.4,142.32,1.169983]
[1724172651685,35.0247,142.42,142.33,32.38]
[1724172651885,0.05008629,142.37,142.35,0.05266966]
[1724172652187,32.38,142.45,142.4,3.5102]
[1724172652693,35.8893,142.45,142.41,3.5101]
[1724172653390,0.04971298,142.44,142.42,0.04896121]
[1724172653893,3.55921298,142.44,142.42,0.04896121]
[1724172654493,32.38,142.43,142.42,0.04896121]
[1724172654904,35.8896,142.43,142.42,0.04896121]
[1724172655192,32.38,142.43,142.34,1.3425]
[1724172655398,3.44413765,142.46,142.34,1.3425]
[1724172655399,32.38,142.41,142.34,1.3425]
[1724172655993,0.04970729,142.39,142.36,0.04774568]
[1724172656397,3.56030729,142.39,142.36,0.04774568]
[1724172656589,0.04970729,142.39,142.36,0.04774568]
[1724172656991,0.04970729,142.39,142.36,3.55894568]
[1724172657491,0.04970729,142.39,142.36,0.04774568]
[1724172657997,0.04970729,142.39,142.37,3.511]
[1724172659102,0.04970729,142.39,142.38,3.5109]
[1724172659903,0.04970729,142.39,142.36,0.04774568]
[1724172660592,0.04970729,142.39,142.37,3.5111]
[1724172661404,0.04970729,142.39,142.38,3.5109]
[1724172663510,0.04970729,142.39,142.36,0.04774568]
[1724172663511,0.04970729,142.39,142.37,3.511]
[1724172663996,32.42970729,142.39,142.36,0.04774568]
[1724172664601,35.94050729,142.39,142.36,3.55884568]
[1724172664793,32.42970729,142.39,142.36,0.04774568]
[1724172664999,35.94040729,142.39,142.36,3.55904568]
[1724172667700,35.94040729,142.39,142.37,3.5111]
[1724172668111,0.04970729,142.39,142.36,0.04774568]
[1724172668300,0.04970729,142.39,142.38,3.5109]
[1724172673512,3.56030729,142.39,142.37,3.511]
[1724172674417,0.04970729,142.39,142.37,3.511]
[1724172674605,0.04970729,142.39,142.37,3.5111]
[1724172675112,0.04970729,142.39,142.36,0.04774568]
[1724172675411,0.04970729,142.39,142.38,3.5109]
[1724172680915,33.7344,142.44,142.36,0.04774568]
[1724172681119,32.38,142.42,142.36,0.04774568]
[1724172681520,3.5102,142.41,142.36,0.04774568]
[1724172681930,0.04811701,142.4,142.36,0.04774568]
[1724172682126,32.38,142.39,142.36,0.04774568]
[1724172682514,12.95,142.37,142.36,0.04774568]
[1724172682722,16.4611,142.37,142.36,0.04774568]
[1724172683335,12.95,142.37,142.36,0.04774568]
[1724172684633,37.17,142.38,142.36,0.04774568]
[1724172685137,4.8,142.38,142.36,0.04774568]
[1724172686134,4.8,142.38,142.36,3.55904568]
[1724172686441,1.289,142.38,142.36,0.04774568]
[1724172686949,4.8,142.38,142.36,0.04774568]
[1724172688041,3.5111,142.37,142.36,0.04774568]
[1724172688242,37.23598265,142.38,142.28,43.13998171]
[1724172688449,3.512,142.34,142.29,1.16915514]
[1724172688640,3.512,142.34,142.31,3.5124]
[1724172688854,3.512,142.34,142.28,1.2974]
[1724172689144,32.37,142.37,142.32,3.5122]
[1724172689343,0.05018085,142.36,142.33,0.05394329]
[1724172689536,3.5116,142.35,142.33,0.05394329]
[1724172690138,3.5119,142.34,142.33,0.05394329]
[1724172693147,3.5117,142.35,142.33,0.05394329]
[1724172694341,3.5119,142.34,142.33,0.05394329]
[1724172694846,35.8819,142.34,142.33,0.05394329]
[1724172696751,32.37,142.34,142.29,3.513]
[1724172696949,32.37,142.32,142.29,3.513]
[1724172697748,3.5126,142.31,142.29,3.513]
[1724172697948,3.5126,142.31,142.29,3.5650614]
[1724172698152,32.41982634,142.32,142.3,3.5127]
[1724172698347,0.04982634,142.32,142.3,3.5127]
[1724172698853,0.04982634,142.32,142.29,0.0520614]
[1724172699062,0.04982634,142.32,142.31,3.5126]
[1724172699847,0.04982634,142.32,142.3,3.5127]
[1724172700655,0.04982634,142.32,142.31,3.5126]
[1724172701750,32.37,142.37,142.33,3.512]
[1724172702157,3.5115,142.36,142.33,3.512]
[1724172702350,3.5115,142.36,142.29,32.37]
[1724172702351,1.289,142.38,142.31,32.37]
[1724172702562,4.8,142.38,142.32,1.16898703]
[1724172702749,0.05214722,142.36,142.34,0.04787625]
[1724172704554,3.56364722,142.36,142.34,0.04787625]
[1724172705557,3.5116,142.35,142.34,0.04787625]
[1724172705852,35.8816,142.35,142.34,0.04787625]
[1724172706567,3.5121,142.34,142.31,3.5124]
[1724172706859,32.37,142.33,142.3,3.5127]
[1724172707157,35.8822,142.33,142.3,3.5127]
[1724172707364,32.37,142.33,142.3,3.5127]
[1724172707566,32.42049776,142.33,142.3,3.56023826]
[1724172707764,35.93279776,142.33,142.3,3.56023826]
[1724172708759,3.5125,142.32,142.3,0.04753826]
[1724172710270,32.37,142.31,142.25,43.10831452]
[1724172710654,32.37,142.31,142.25,1.2508]
[1724172710854,3.513,142.3,142.25,1.2508]
[1724172711764,0.04665856,142.29,142.27,3.5135]
[1724172715068,0.04665856,142.29,142.28,3.5133]
[1724172718659,32.37,142.35,142.26,0.05151417]
[1724172718660,32.37,142.35,142.27,32.37]
[1724172718865,33.6135,142.37,142.29,32.37]
[1724172719060,1.2435,142.37,142.29,32.37]
[1724172719363,4.7548,142.37,142.29,32.37]
[1724172719561,32.37,142.35,142.28,41.85607189]
[1724172719863,0.05214857,142.34,142.32,0.04512721]
[1724172720572,3.56414857,142.34,142.32,0.04512721]
[1724172722262,0.05214857,142.34,142.32,0.04512721]
[1724172722568,0.05214857,142.34,142.32,3.55732721]
[1724172724063,0.05214857,142.34,142.33,3.5121]
[1724172724262,0.05214857,142.34,142.32,0.04512721]
[1724172724466,3.56424857,142.34,142.32,0.04512721]
[1724172725966,3.56424857,142.34,142.32,3.55742721]
[1724172726774,3.5121,142.33,142.32,0.04512721]
[1724172727862,0.05214857,142.34,142.32,3.55742721]
[1724172728170,0.05214857,142.34,142.32,0.04512721]
[1724172728571,3.56404857,142.34,142.32,0.04512721]
[1724172729171,3.56404857,142.34,142.32,3.55742721]
[1724172730073,3.56404857,142.34,142.32,0.04512721]
[1724172730771,3.5121,142.33,142.32,0.04512721]
[1724172731272,3.5127,142.31,142.28,3.5131]
[1724172731776,3.5127,142.31,142.28,3.5132]
[1724172731966,3.5127,142.31,142.25,1.2508]
[1724172732170,0.0514378,142.29,142.27,0.04638188]